[Event "ESP-chT 1st Division 2020"]
[Site "Padron"]
[Date "2020.10.04"]
[Round "2.17"]
[White "Martinez Piqueras, Carlos"]
[Black "Martinez Ramirez, Erik"]
[Result "1/2-1/2"]
[ECO "B38"]
[WhiteElo "2200"]
[BlackElo "2231"]
[Annotator "ChessBase"]
[PlyCount "104"]
[EventDate "2020.10.01"]
[EventType "team-tourn"]
[EventCountry "ESP"]
[SourceTitle "playchess.com"]
[Source "ChessBase"]
[SourceQuality "1"]
[TimeControl "5400+30"]

1. e4 {[%emt 0:00:00]} c5 {[%emt 0:00:00]} 2. Nf3 {[%emt 0:00:00]} Nc6 {[%emt 0:00:06]} 3. d4 {[%emt 0:00:18]} cxd4 {[%emt 0:00:08]} 4. Nxd4 {[%emt 0:00:07]} g6 {[%emt 0:00:15]} 5. c4 {[%emt 0:01:14]} Bg7 {[%emt 0:00:38]} 6. Be3 {[%emt 0:00:18]} d6 {[%emt 0:00:29]} 7. Nc3 {[%emt 0:00:45]} Nf6 {[%emt 0:00:13]} 8. Be2 {[%emt 0:01:04]} O-O {[%emt 0:03:07]} 9. h3 {[%emt 0:07:07]} a5 {[%emt 0:03:30]} 10. Ndb5 {[%emt 0:03:59]} Nd7 {[%emt 0:07:06]} 11. Qd2 {[%emt 0:07:18]} Nc5 {[%emt 0:05:58]} 12. O-O {[%emt 0:13:20]} a4 {[%emt 0:01:50]} 13. Rad1 {[%emt 0:09:06]} Qa5 {[%emt 0:02:23]} 14. f4 {[%emt 0:15:58]} f5 {[%emt 0:01:47]} 15. e5 {[%emt 0:05:14]} Rd8 {[%emt 0:06:07]} 16. exd6 {[%emt 0:01:53]} exd6 {[%emt 0:00:27]} 17. Nxd6 {[%emt 0:10:12]} Bxc3 {[%emt 0:13:15]} 18. Qxc3 {[%emt 0:00:13]} Qxc3 {[%emt 0:00:16]} 19. bxc3 {[%emt 0:00:05]} Ne4 {[%emt 0:03:35]} 20. Nxe4 {[%emt 0:01:21]} fxe4 {[%emt 0:00:09]} 21. Bb6 {[%emt 0:03:25]} Rxd1 {[%emt 0:00:33]} 22. Rxd1 {[%emt 0:00:21]} Be6 {[%emt 0:02:49]} 23. a3 {[%emt 0:03:27]} Kf7 {[%emt 0:19:02]} 24. Kf2 {[%emt 0:01:21]} Rc8 {[%emt 0:01:35]} 25. c5 {[%emt 0:05:57]} Ne7 {[%emt 0:03:12]} 26. Rd6 {[%emt 0:05:07]} e3+ {[%emt 0:08:18]} 27. Kf1 {[%emt 0:00:06]} Nf5 {[%emt 0:00:20]} 28. Rd1 {[%emt 0:01:21]} Ng3+ {[%emt 0:03:05]} 29. Ke1 {[%emt 0:00:05]} Ne4 {[%emt 0:00:58]} 30. Rd3 {[%emt 0:01:19]} Nxc5 {[%emt 0:02:54]} 31. Rxe3 {[%emt 0:00:08]} Rc6 {[%emt 0:02:13]} 32. Ba7 {[%emt 0:00:23]} Bd7 {[%emt 0:03:15]} 33. Bb8 {[%emt 0:01:52]} Rb6 {[%emt 0:01:29]} 34. Re5 {[%emt 0:00:59]} Ne6 {[%emt 0:01:20]} 35. f5 {[%emt 0:00:08]} Nf4 {[%emt 0:01:40]} 36. fxg6+ {[%emt 0:00:40]} hxg6 {[%emt 0:01:03]} 37. Bc4+ {[%emt 0:00:54]} Kf6 {[%emt 0:00:01]} 38. g4 {[%emt 0:00:47]} g5 {[%emt 0:01:11]} 39. Re4 {[%emt 0:00:59]} Nxh3 {[%emt 0:02:17]} 40. Be5+ {[%emt 0:00:09]} Kg6 {[%emt 0:00:10]} 41. Rd4 {[%emt 0:00:30]} Bb5 {[%emt 0:01:10]} 42. Ba2 {[%emt 0:00:31]} Bc6 {[%emt 0:00:33]} 43. Rd6+ {[%emt 0:00:18]} Kh7 {[%emt 0:00:01]} 44. Be6 {[%emt 0:00:21]} Rb1+ {[%emt 0:00:20]} 45. Kd2 {[%emt 0:00:05]} Be4 {[%emt 0:00:21]} 46. c4 {[%emt 0:01:32]} Nf4 {[%emt 0:00:33]} 47. Bc8 {[%emt 0:00:36]} Rb3 {[%emt 0:00:38]} 48. Rd7+ {[%emt 0:00:23]} Kg6 {[%emt 0:00:29]} 49. Rd4 {[%emt 0:00:32]} Rb2+ {[%emt 0:00:52]} 50. Kc1 {[%emt 0:00:36]} Rb1+ {[%emt 0:00:38]} 51. Kd2 {[%emt 0:00:04]} Rb2+ {[%emt 0:00:04]} 52. Kc1 {[%emt 0:00:01]} Rb1+ {[%emt 0:00:50]} 1/2-1/2

[Event "ESP-chT 1st Division 2020"]
[Site "Padron"]
[Date "2020.10.04"]
[Round "2.18"]
[White "Castillo Escario, Yolanda"]
[Black "Rodrigo Yanguas, Maria"]
[Result "1/2-1/2"]
[ECO "B52"]
[WhiteElo "2006"]
[BlackElo "2077"]
[Annotator "ChessBase"]
[PlyCount "84"]
[EventDate "2020.10.01"]
[EventType "team-tourn"]
[EventCountry "ESP"]
[SourceTitle "playchess.com"]
[Source "ChessBase"]
[SourceQuality "1"]
[TimeControl "5400+30"]

1. e4 {[%emt 0:00:00]} c5 {[%emt 0:00:00]} 2. Nf3 {[%emt 0:00:00]} d6 {[%emt 0:00:00]} 3. Bb5+ {[%emt 0:00:04]} Bd7 {[%emt 0:00:39]} 4. Bxd7+ {[%emt 0:00:17]} Nxd7 {[%emt 0:00:16]} 5. O-O {[%emt 0:00:25]} Ngf6 {[%emt 0:00:43]} 6. Qe2 {[%emt 0:00:20]} e6 {[%emt 0:02:11]} 7. b3 {[%emt 0:01:53]} Be7 {[%emt 0:02:24]} 8. Bb2 {[%emt 0:00:18]} O-O {[%emt 0:01:04]} 9. d4 {[%emt 0:20:04]} cxd4 {[%emt 0:13:56]} 10. Nxd4 {[%emt 0:00:35]} a6 {[%emt 0:01:35]} 11. c4 {[%emt 0:01:14]} Qc7 {[%emt 0:03:48]} 12. Nc3 {[%emt 0:03:13]} b6 {[%emt 0:13:34]} 13. Rfd1 {[%emt 0:05:36]} Rfd8 {[%emt 0:02:06]} 14. Rd3 {[%emt 0:15:31]} Ne5 {[%emt 0:07:24]} 15. Rg3 {[%emt 0:02:56]} Nc6 {[%emt 0:09:04]} 16. Nc2 {[%emt 0:04:23]} Rab8 {[%emt 0:02:38]} 17. Ne3 {[%emt 0:07:25]} Qb7 {[%emt 0:01:50]} 18. Rd1 {[%emt 0:09:37]} b5 {[%emt 0:02:49]} 19. cxb5 {[%emt 0:17:22]} axb5 {[%emt 0:00:08]} 20. Kh1 {[%emt 0:02:25]} Ne5 {[%emt 0:02:49]} 21. f4 {[%emt 0:02:31]} Ng6 {[%emt 0:00:41]} 22. f5 {[%emt 0:01:07]} Ne5 {[%emt 0:01:10]} 23. fxe6 {[%emt 0:02:58]} fxe6 {[%emt 0:00:07]} 24. b4 {[%emt 0:00:48]} Nxe4 {[%emt 0:05:44]} 25. Nxe4 {[%emt 0:00:05]} Qxe4 {[%emt 0:00:08]} 26. Rd4 {[%emt 0:00:21]} Qb7 {[%emt 0:05:08]} 27. Ng4 {[%emt 0:00:26]} Rf8 {[%emt 0:05:24]} 28. Nxe5 {[%emt 0:01:15]} dxe5 {[%emt 0:00:06]} 29. Rdg4 Bf6 {[%emt 0:00:32]} 30. h4 {[%emt 0:00:43]} Qd5 {[%emt 0:03:06]} 31. a3 {[%emt 0:00:51]} Rbd8 {[%emt 0:00:41]} 32. Re4 {[%emt 0:00:32]} Qa2 {[%emt 0:03:16]} 33. Bxe5 {[%emt 0:00:16]} Qb1+ {[%emt 0:00:56]} 34. Kh2 {[%emt 0:00:17]} Rd1 {[%emt 0:00:34]} 35. Rf3 {[%emt 0:00:37]} Rh1+ {[%emt 0:04:04]} 36. Kg3 {[%emt 0:00:03]} Qg1 {[%emt 0:02:24]} 37. Bxf6 {[%emt 0:00:15]} Qh2+ {[%emt 0:01:10]} 38. Kf2 {[%emt 0:00:14]} Qg1+ {[%emt 0:00:14]} 39. Kg3 {[%emt 0:00:04]} Qh2+ {[%emt 0:00:11]} 40. Kf2 {[%emt 0:00:14]} Qg1+ {[%emt 0:00:10]} 41. Kg3 {[%emt 0:00:09]} Qh2+ 42. Kg4 gxf6 1/2-1/2

[Event "ESP-chT 1st Division 2020"]
[Site "Padron"]
[Date "2020.10.04"]
[Round "2.19"]
[White "Del Rio De Angelis, Salvador G."]
[Black "Salgado Lopez, Ivan"]
[Result "1/2-1/2"]
[ECO "D86"]
[WhiteElo "2508"]
[BlackElo "2595"]
[Annotator "ChessBase"]
[PlyCount "59"]
[EventDate "2020.10.01"]
[EventType "team-tourn"]
[EventCountry "ESP"]
[SourceTitle "playchess.com"]
[Source "ChessBase"]
[SourceQuality "1"]
[TimeControl "5400+30"]

1. d4 {[%emt 0:00:00]} Nf6 {[%emt 0:00:00]} 2. c4 {[%emt 0:00:10]} g6 {[%emt 0:00:00]} 3. Nc3 {[%emt 0:00:34]} d5 {[%emt 0:00:00]} 4. cxd5 {[%emt 0:00:31]} Nxd5 {[%emt 0:00:11]} 5. e4 {[%emt 0:00:18]} Nxc3 {[%emt 0:00:10]} 6. bxc3 {[%emt 0:00:13]} Bg7 {[%emt 0:00:12]} 7. Bc4 {[%emt 0:00:42]} c5 {[%emt 0:00:13]} 8. Ne2 {[%emt 0:00:24]} Nc6 {[%emt 0:00:16]} 9. Be3 {[%emt 0:00:19]} O-O {[%emt 0:00:20]} 10. O-O {[%emt 0:00:21]} Bg4 {[%emt 0:00:06]} 11. f3 {[%emt 0:00:18]} Bd7 {[%emt 0:00:06]} 12. Rb1 {[%emt 0:00:32]} Qc7 {[%emt 0:02:04]} 13. Bf4 {[%emt 0:01:54]} Qc8 {[%emt 0:00:16]} 14. d5 {[%emt 0:01:40]} Na5 {[%emt 0:03:42]} 15. Bd3 {[%emt 0:00:18]} e5 {[%emt 0:07:33]} 16. Be3 {[%emt 0:05:02]} c4 {[%emt 0:00:15]} 17. Bc2 {[%emt 0:00:08]} b6 {[%emt 0:00:10]} 18. f4 {[%emt 0:01:40]} exf4 {[%emt 0:01:30]} 19. Bd4 {[%emt 0:02:23]} Nb7 {[%emt 0:07:28]} 20. Rxf4 {[%emt 0:06:15]} Qc7 {[%emt 0:09:48]} 21. Bxg7 {[%emt 0:09:23]} Kxg7 {[%emt 0:00:10]} 22. Qd2 {[%emt 0:00:09]} f6 {[%emt 0:07:21]} 23. Nd4 {[%emt 0:08:40]} Rae8 {[%emt 0:14:02]} 24. Rbf1 {[%emt 0:03:04]} Nd6 {[%emt 0:09:48]} 25. Qf2 {[%emt 0:06:45]} Qd8 {[%emt 0:00:34]} 26. h4 {[%emt 0:01:06]} Re5 {[%emt 0:05:37]} 27. Nf3 {[%emt 0:04:15]} Ree8 {[%emt 0:00:36]} 28. Nd4 {[%emt 0:00:41]} Re5 {[%emt 0:00:05]} 29. Nf3 {[%emt 0:00:07]} Ree8 {[%emt 0:00:05]} 30. Nd4 {[%emt 0:00:07]} 1/2-1/2

[Event "ESP-chT 1st Division 2020"]
[Site "Padron"]
[Date "2020.10.04"]
[Round "2.20"]
[White "Brunello, Sabino"]
[Black "Demuth, Adrien"]
[Result "1/2-1/2"]
[ECO "E41"]
[WhiteElo "2539"]
[BlackElo "2488"]
[Annotator "ChessBase"]
[PlyCount "31"]
[EventDate "2020.10.01"]
[EventType "team-tourn"]
[EventCountry "ESP"]
[SourceTitle "playchess.com"]
[Source "ChessBase"]
[SourceQuality "1"]
[TimeControl "5400+30"]

1. d4 {[%emt 0:00:00]} Nf6 {[%emt 0:00:00]} 2. c4 {[%emt 0:00:00]} e6 {[%emt 0:00:00]} 3. Nc3 {[%emt 0:01:50]} Bb4 {[%emt 0:00:07]} 4. e3 {[%emt 0:01:59]} c5 {[%emt 0:00:19]} 5. Nf3 {[%emt 0:06:24]} Bxc3+ {[%emt 0:02:12]} 6. bxc3 {[%emt 0:00:12]} d6 {[%emt 0:00:12]} 7. Bd3 {[%emt 0:02:49]} Nc6 {[%emt 0:00:06]} 8. e4 {[%emt 0:01:41]} e5 {[%emt 0:00:17]} 9. d5 {[%emt 0:02:18]} Ne7 {[%emt 0:00:20]} 10. Ng1 {[%emt 0:12:30]} Ng6 {[%emt 0:05:48]} 11. h4 {[%emt 0:00:35]} O-O {[%emt 0:25:48]} 12. g3 {[%emt 0:14:45]} h6 {[%emt 0:15:39]} 13. h5 {[%emt 0:19:43]} Nh8 {[%emt 0:00:24]} 14. Bd2 {[%emt 0:06:21]} Re8 {[%emt 0:08:01]} 15. f3 {[%emt 0:05:34]} Nh7 {[%emt 0:00:45]} 16. g4 {[%emt 0:02:31]} 1/2-1/2

[Event "ESP-chT 1st Division 2020"]
[Site "Padron"]
[Date "2020.10.04"]
[Round "2.21"]
[White "Narciso Dublan, Marc"]
[Black "Larino Nieto, David"]
[Result "1/2-1/2"]
[ECO "A40"]
[WhiteElo "2477"]
[BlackElo "2477"]
[Annotator "ChessBase"]
[PlyCount "107"]
[EventDate "2020.10.01"]
[EventType "team-tourn"]
[EventCountry "ESP"]
[SourceTitle "playchess.com"]
[Source "ChessBase"]
[SourceQuality "1"]
[TimeControl "5400+30"]

1. d4 {[%emt 0:00:00]} g6 {[%emt 0:00:00]} 2. e4 {[%emt 0:00:00]} c6 {[%emt 0:00:00]} 3. Nf3 {[%emt 0:01:29]} d5 {[%emt 0:00:02]} 4. Nbd2 {[%emt 0:00:45]} Bg7 {[%emt 0:00:08]} 5. exd5 {[%emt 0:02:50]} cxd5 {[%emt 0:00:13]} 6. Bd3 {[%emt 0:00:12]} Nc6 {[%emt 0:00:37]} 7. c3 {[%emt 0:00:07]} Nh6 {[%emt 0:00:57]} 8. O-O {[%emt 0:00:19]} O-O {[%emt 0:00:21]} 9. Re1 {[%emt 0:00:24]} Bf5 {[%emt 0:01:09]} 10. Nb3 {[%emt 0:02:20]} Qd6 {[%emt 0:09:51]} 11. Bxh6 {[%emt 0:04:27]} Bxh6 {[%emt 0:00:03]} 12. Bxf5 {[%emt 0:00:16]} gxf5 {[%emt 0:00:06]} 13. Nh4 {[%emt 0:04:59]} Qf6 {[%emt 0:03:33]} 14. Qh5 {[%emt 0:00:45]} e6 {[%emt 0:00:20]} 15. Nf3 {[%emt 0:05:25]} Qg6 {[%emt 0:14:09]} 16. Qh4 {[%emt 0:02:09]} Kh8 {[%emt 0:06:39]} 17. Nc5 {[%emt 0:08:31]} Rg8 {[%emt 0:05:32]} 18. Qh3 {[%emt 0:04:04]} Rg7 {[%emt 0:01:59]} 19. Re2 {[%emt 0:07:15]} Rag8 {[%emt 0:03:25]} 20. g3 {[%emt 0:00:24]} f4 {[%emt 0:07:57]} 21. Rae1 {[%emt 0:10:44]} fxg3 {[%emt 0:00:53]} 22. fxg3 {[%emt 0:00:29]} b6 {[%emt 0:13:27]} 23. Nd7 {[%emt 0:05:43]} Bf4 {[%emt 0:04:06]} 24. Kh1 {[%emt 0:08:46]} Bd6 {[%emt 0:05:18]} 25. Rf2 {[%emt 0:03:23]} Rd8 {[%emt 0:07:37]} 26. Nfe5 {[%emt 0:02:30]} Nxe5 {[%emt 0:00:49]} 27. Nxe5 {[%emt 0:00:37]} Bxe5 {[%emt 0:00:04]} 28. Rxe5 {[%emt 0:00:38]} Qb1+ {[%emt 0:01:00]} 29. Kg2 {[%emt 0:04:51]} Qxa2 {[%emt 0:06:04]} 30. Qh4 {[%emt 0:00:22]} Rdg8 {[%emt 0:00:45]} 31. Qe7 {[%emt 0:06:12]} a5 {[%emt 0:01:20]} 32. Rxf7 {[%emt 0:04:48]} Qxb2+ {[%emt 0:00:11]} 33. Kh3 {[%emt 0:00:45]} Qf2 {[%emt 0:00:44]} 34. Rxg7 {[%emt 0:03:27]} Rxg7 {[%emt 0:00:02]} 35. Qxe6 {[%emt 0:02:12]} Rg6 {[%emt 0:03:54]} 36. Qe8+ {[%emt 0:03:44]} Rg8 {[%emt 0:00:06]} 37. Qe7 {[%emt 0:01:29]} Qf1+ {[%emt 0:01:00]} 38. Kh4 {[%emt 0:00:02]} Qf3 {[%emt 0:00:53]} 39. Qe6 {[%emt 0:01:30]} Rg6 {[%emt 0:00:34]} 40. Qe8+ {[%emt 0:00:32]} Kg7 {[%emt 0:01:20]} 41. Qd7+ {[%emt 0:00:18]} Kh6 {[%emt 0:00:38]} 42. Rxd5 {[%emt 0:00:40]} a4 {[%emt 0:02:00]} 43. Qf5 {[%emt 0:00:32]} Qxf5 {[%emt 0:00:58]} 44. Rxf5 {[%emt 0:00:01]} a3 {[%emt 0:00:16]} 45. c4 {[%emt 0:00:55]} a2 {[%emt 0:00:19]} 46. Rf1 {[%emt 0:00:05]} Re6 {[%emt 0:01:02]} 47. Ra1 {[%emt 0:00:57]} Re2 {[%emt 0:00:23]} 48. c5 {[%emt 0:00:36]} Rxh2+ {[%emt 0:00:39]} 49. Kg4 {[%emt 0:00:01]} bxc5 50. dxc5 {[%emt 0:00:04]} Rc2 {[%emt 0:00:56]} 51. c6 {[%emt 0:00:08]} Kg6 {[%emt 0:00:19]} 52. c7 {[%emt 0:00:09]} h5+ {[%emt 0:00:08]} 53. Kh3 {[%emt 0:00:15]} Rxc7 {[%emt 0:00:08]} 54. Rxa2 {[%emt 0:00:04]} 1/2-1/2

[Event "ESP-chT 1st Division 2020"]
[Site "Padron"]
[Date "2020.10.04"]
[Round "2.22"]
[White "Silva, Luis Neves Da"]
[Black "Suarez Garcia, Carlos"]
[Result "0-1"]
[ECO "D37"]
[WhiteElo "2379"]
[BlackElo "2439"]
[Annotator "ChessBase"]
[PlyCount "74"]
[EventDate "2020.10.01"]
[EventType "team-tourn"]
[EventCountry "ESP"]
[SourceTitle "playchess.com"]
[Source "ChessBase"]
[SourceQuality "1"]
[TimeControl "5400+30"]

1. d4 {[%emt 0:00:00]} d5 {[%emt 0:00:00]} 2. c4 {[%emt 0:00:00]} e6 {[%emt 0:00:00]} 3. Nc3 {[%emt 0:00:00]} Be7 {[%emt 0:00:00]} 4. Nf3 {[%emt 0:00:04]} Nf6 {[%emt 0:00:05]} 5. Bf4 {[%emt 0:00:26]} O-O {[%emt 0:00:33]} 6. e3 {[%emt 0:00:10]} Nbd7 {[%emt 0:00:15]} 7. Be2 {[%emt 0:00:11]} dxc4 {[%emt 0:12:04]} 8. O-O {[%emt 0:00:08]} Nd5 {[%emt 0:06:10]} 9. Bxc4 {[%emt 0:00:08]} Nxf4 {[%emt 0:06:14]} 10. exf4 {[%emt 0:00:07]} Nb6 {[%emt 0:06:37]} 11. Bd3 {[%emt 0:05:42]} Nd5 {[%emt 0:01:39]} 12. Qd2 {[%emt 0:06:58]} Bd7 {[%emt 0:15:03]} 13. Ne5 {[%emt 0:01:07]} Rc8 {[%emt 0:01:47]} 14. Nxd5 exd5 {[%emt 0:00:07]} 15. Qc2 {[%emt 0:10:31]} g6 {[%emt 0:05:53]} 16. Qb3 {[%emt 0:02:45]} Be8 {[%emt 0:10:24]} 17. Qxb7 {[%emt 0:02:05]} Rb8 {[%emt 0:00:09]} 18. Qxa7 {[%emt 0:00:45]} f6 {[%emt 0:06:53]} 19. Nf3 {[%emt 0:10:27]} Bc6 {[%emt 0:00:07]} 20. Bxg6 {[%emt 0:22:25]} Ra8 {[%emt 0:02:21]} 21. Qxa8 {[%emt 0:00:05]} Qxa8 {[%emt 0:00:25]} 22. Bf5 {[%emt 0:00:16]} Bd6 {[%emt 0:00:53]} 23. Rfe1 {[%emt 0:01:06]} Re8 {[%emt 0:03:27]} 24. Be6+ {[%emt 0:01:55]} Kf8 {[%emt 0:00:04]} 25. f5 {[%emt 0:01:24]} Rb8 {[%emt 0:00:28]} 26. b3 {[%emt 0:01:47]} Be8 {[%emt 0:00:38]} 27. g4 {[%emt 0:00:30]} h6 {[%emt 0:01:55]} 28. Nh4 {[%emt 0:01:18]} Rb4 {[%emt 0:01:08]} 29. Rad1 {[%emt 0:02:34]} c6 {[%emt 0:01:46]} 30. Re2 {[%emt 0:01:27]} Qa7 {[%emt 0:00:42]} 31. Nf3 {[%emt 0:07:23]} Qg7 {[%emt 0:00:26]} 32. h3 {[%emt 0:03:19]} h5 {[%emt 0:00:21]} 33. g5 {[%emt 0:00:45]} fxg5 {[%emt 0:00:07]} 34. Kh1 {[%emt 0:01:23]} g4 {[%emt 0:02:01]} 35. Ne5 {[%emt 0:00:46]} Bxe5 {[%emt 0:02:56]} 36. dxe5 {[%emt 0:00:02]} gxh3 {[%emt 0:00:24]} 37. f3 {[%emt 0:04:54]} Qg3 {[%emt 0:00:17]} 0-1

[Event "ESP-chT 1st Division 2020"]
[Site "Padron"]
[Date "2020.10.04"]
[Round "2.23"]
[White "Travadon, Loic"]
[Black "Gomez Dieguez, David"]
[Result "1/2-1/2"]
[ECO "D37"]
[WhiteElo "2424"]
[BlackElo "2261"]
[Annotator "ChessBase"]
[PlyCount "86"]
[EventDate "2020.10.01"]
[EventType "team-tourn"]
[EventCountry "ESP"]
[SourceTitle "playchess.com"]
[Source "ChessBase"]
[SourceQuality "1"]
[TimeControl "5400+30"]

1. Nf3 {[%emt 0:00:00]} Nf6 {[%emt 0:00:00]} 2. d4 {[%emt 0:00:00]} e6 {[%emt 0:00:00]} 3. c4 {[%emt 0:00:00]} d5 {[%emt 0:00:00]} 4. Nc3 {[%emt 0:00:00]} a6 {[%emt 0:00:00]} 5. cxd5 {[%emt 0:03:37]} exd5 {[%emt 0:00:00]} 6. Bg5 {[%emt 0:01:30]} Be6 {[%emt 0:00:09]} 7. e3 {[%emt 0:02:31]} Nbd7 {[%emt 0:00:05]} 8. Bd3 {[%emt 0:00:46]} Bd6 {[%emt 0:00:09]} 9. O-O {[%emt 0:01:09]} c6 {[%emt 0:00:04]} 10. Qc2 {[%emt 0:03:19]} Qc7 {[%emt 0:00:06]} 11. Bh4 {[%emt 0:01:44]} O-O {[%emt 0:00:10]} 12. Bg3 {[%emt 0:04:12]} h6 {[%emt 0:03:30]} 13. b4 {[%emt 0:03:33]} b5 {[%emt 0:10:36]} 14. Ne2 {[%emt 0:02:45]} Bxg3 {[%emt 0:02:54]} 15. Nxg3 {[%emt 0:02:47]} Nb6 {[%emt 0:01:32]} 16. Ne5 {[%emt 0:02:19]} Nc4 {[%emt 0:02:33]} 17. Bxc4 {[%emt 0:00:49]} bxc4 {[%emt 0:00:23]} 18. Ne2 {[%emt 0:05:44]} a5 {[%emt 0:05:57]} 19. bxa5 {[%emt 0:01:36]} Rxa5 {[%emt 0:01:55]} 20. a4 {[%emt 0:01:15]} c5 {[%emt 0:03:11]} 21. Nc3 {[%emt 0:02:41]} cxd4 {[%emt 0:00:41]} 22. exd4 {[%emt 0:00:03]} Rfa8 {[%emt 0:05:09]} 23. Rfb1 {[%emt 0:01:32]} Qc8 {[%emt 0:03:44]} 24. Rb6 {[%emt 0:01:38]} Nd7 {[%emt 0:03:19]} 25. Nxd7 {[%emt 0:12:28]} Bxd7 {[%emt 0:00:26]} 26. Rb4 {[%emt 0:04:56]} Qc7 {[%emt 0:03:45]} 27. h3 {[%emt 0:06:19]} g6 {[%emt 0:05:46]} 28. Qd2 {[%emt 0:04:01]} Kg7 {[%emt 0:00:22]} 29. Qb2 {[%emt 0:04:39]} Qf4 {[%emt 0:06:08]} 30. Rb7 {[%emt 0:12:09]} Bc6 {[%emt 0:12:09]} 31. Rb6 {[%emt 0:00:42]} Be8 {[%emt 0:05:37]} 32. Kh1 {[%emt 0:04:46]} Bxa4 {[%emt 0:06:12]} 33. Re1 {[%emt 0:07:11]} Bb3 {[%emt 0:03:31]} 34. Rb7 {[%emt 0:00:54]} Qxd4 {[%emt 0:01:29]} 35. Ree7 {[%emt 0:00:47]} Rf8 {[%emt 0:00:21]} 36. Qc1 {[%emt 0:00:18]} Qxf2 {[%emt 0:01:15]} 37. Ne4 {[%emt 0:00:56]} Qd4 {[%emt 0:12:44]} 38. Qf4 {[%emt 0:00:41]} Ra1+ {[%emt 0:00:11]} 39. Kh2 {[%emt 0:00:00]} Qg1+ {[%emt 0:00:13]} 40. Kg3 {[%emt 0:00:01]} Qe1+ {[%emt 0:00:08]} 41. Kh2 {[%emt 0:00:44]} Qg1+ {[%emt 0:01:05]} 42. Kg3 {[%emt 0:00:01]} Qe1+ {[%emt 0:00:25]} 43. Kh2 {[%emt 0:00:05]} Qg1+ {[%emt 0:00:06]} 1/2-1/2

[Event "ESP-chT 1st Division 2020"]
[Site "Padron"]
[Date "2020.10.04"]
[Round "2.24"]
[White "Hernandez Estevez, Yudania"]
[Black "Ambartsumova, Karina"]
[Result "0-1"]
[ECO "C84"]
[WhiteElo "2197"]
[BlackElo "2371"]
[Annotator "ChessBase"]
[PlyCount "82"]
[EventDate "2020.10.01"]
[EventType "team-tourn"]
[EventCountry "ESP"]
[SourceTitle "playchess.com"]
[Source "ChessBase"]
[SourceQuality "1"]
[TimeControl "5400+30"]

1. e4 {[%emt 0:00:00]} e5 {[%emt 0:00:00]} 2. Nf3 {[%emt 0:00:00]} Nc6 {[%emt 0:00:03]} 3. Bb5 {[%emt 0:00:11]} a6 {[%emt 0:00:48]} 4. Ba4 {[%emt 0:01:01]} Nf6 {[%emt 0:00:51]} 5. O-O {[%emt 0:01:17]} Be7 {[%emt 0:01:47]} 6. d3 {[%emt 0:00:57]} b5 {[%emt 0:01:43]} 7. Bb3 {[%emt 0:00:06]} O-O {[%emt 0:02:25]} 8. Re1 {[%emt 0:01:01]} Bb7 {[%emt 0:01:47]} 9. Nc3 {[%emt 0:02:56]} d6 {[%emt 0:08:25]} 10. a3 {[%emt 0:01:22]} Nd4 {[%emt 0:07:26]} 11. Nxd4 {[%emt 0:05:18]} exd4 {[%emt 0:00:33]} 12. Ne2 {[%emt 0:02:06]} c5 {[%emt 0:02:34]} 13. Ng3 {[%emt 0:02:35]} Bc8 {[%emt 0:15:32]} 14. c3 {[%emt 0:02:17]} dxc3 {[%emt 0:04:13]} 15. bxc3 {[%emt 0:00:18]} Bg4 {[%emt 0:06:57]} 16. f3 {[%emt 0:10:48]} Be6 {[%emt 0:03:27]} 17. d4 {[%emt 0:01:31]} Bxb3 {[%emt 0:03:58]} 18. Qxb3 {[%emt 0:00:06]} Nd7 {[%emt 0:05:39]} 19. Nf5 {[%emt 0:04:46]} g6 {[%emt 0:07:12]} 20. Nxe7+ {[%emt 0:14:23]} Qxe7 {[%emt 0:00:02]} 21. Bh6 {[%emt 0:03:08]} Rfc8 {[%emt 0:04:09]} 22. a4 bxa4 {[%emt 0:01:27]} 23. Qxa4 {[%emt 0:11:28]} cxd4 {[%emt 0:05:40]} 24. cxd4 {[%emt 0:01:28]} d5 {[%emt 0:01:07]} 25. Qa2 {[%emt 0:05:18]} Nb6 {[%emt 0:02:49]} 26. Qf2 {[%emt 0:02:29]} Qf6 {[%emt 0:02:33]} 27. h4 {[%emt 0:06:28]} a5 {[%emt 0:02:50]} 28. Bg5 {[%emt 0:03:10]} Qe6 {[%emt 0:00:33]} 29. exd5 {[%emt 0:00:37]} Qd6 {[%emt 0:01:49]} 30. Be7 {[%emt 0:01:11]} Qxd5 {[%emt 0:00:44]} 31. Re5 {[%emt 0:00:30]} Qd7 {[%emt 0:01:43]} 32. h5 {[%emt 0:03:29]} Nd5 {[%emt 0:01:25]} 33. Bc5 {[%emt 0:02:20]} Re8 {[%emt 0:00:44]} 34. Rae1 {[%emt 0:00:28]} a4 {[%emt 0:01:43]} 35. h6 {[%emt 0:01:54]} Rxe5 {[%emt 0:00:43]} 36. Rxe5 {[%emt 0:06:00]} a3 {[%emt 0:00:56]} 37. Qa2 {[%emt 0:01:34]} Nc3 {[%emt 0:00:21]} 38. Qa1 {[%emt 0:00:26]} a2 {[%emt 0:00:15]} 39. d5 {[%emt 0:02:25]} Qb5 {[%emt 0:00:29]} 40. Bd4 {[%emt 0:01:31]} Qb1+ {[%emt 0:00:40]} 41. Re1 {[%emt 0:00:10]} Qxa1 {[%emt 0:00:26]} 0-1

[Event "ESP-chT 1st Division 2020"]
[Site "Padron"]
[Date "2020.10.05"]
[Round "3.2"]
[White "Glavina, Pablo"]
[Black "Brunello, Sabino"]
[Result "1/2-1/2"]
[ECO "B14"]
[WhiteElo "2412"]
[BlackElo "2539"]
[Annotator "ChessBase"]
[PlyCount "65"]
[EventDate "2020.10.01"]
[EventType "team-tourn"]
[EventCountry "ESP"]
[SourceTitle "playchess.com"]
[Source "ChessBase"]
[SourceQuality "1"]
[TimeControl "5400+30"]

1. e4 {[%emt 0:00:00]} c6 {[%emt 0:00:29]} 2. d4 {[%emt 0:00:00]} d5 {[%emt 0:00:10]} 3. exd5 {[%emt 0:00:00]} cxd5 {[%emt 0:00:23]} 4. c4 {[%emt 0:00:00]} Nf6 {[%emt 0:00:45]} 5. Nc3 {[%emt 0:00:00]} e6 {[%emt 0:00:22]} 6. Nf3 {[%emt 0:00:04]} Bb4 {[%emt 0:00:43]} 7. cxd5 {[%emt 0:00:05]} Nxd5 {[%emt 0:00:22]} 8. Qc2 {[%emt 0:00:08]} Nc6 {[%emt 0:01:14]} 9. Be2 {[%emt 0:00:30]} Nce7 {[%emt 0:02:55]} 10. O-O {[%emt 0:02:00]} O-O {[%emt 0:08:08]} 11. Bg5 {[%emt 0:15:17]} h6 {[%emt 0:15:32]} 12. Bh4 Nf4 {[%emt 0:35:54]} 13. Bc4 {[%emt 0:01:56]} Nfg6 {[%emt 0:10:29]} 14. Bg3 {[%emt 0:00:31]} Bd7 {[%emt 0:07:04]} 15. d5 {[%emt 0:13:37]} Rc8 {[%emt 0:00:47]} 16. Qb3 {[%emt 0:00:08]} Bxc3 {[%emt 0:02:31]} 17. dxe6 {[%emt 0:00:23]} Rxc4 {[%emt 0:03:05]} 18. exd7 {[%emt 0:02:34]} Rc6 {[%emt 0:01:45]} 19. Qxb7 {[%emt 0:20:33]} Bf6 {[%emt 0:01:33]} 20. Rac1 {[%emt 0:01:41]} Qb6 {[%emt 0:04:50]} 21. Qxb6 {[%emt 0:01:09]} axb6 {[%emt 0:00:03]} 22. Rxc6 {[%emt 0:08:14]} Nxc6 {[%emt 0:00:01]} 23. Bc7 {[%emt 0:00:13]} Ra8 {[%emt 0:00:47]} 24. Rc1 {[%emt 0:00:41]} Nd8 {[%emt 0:00:50]} 25. Bxb6 {[%emt 0:01:30]} Rxa2 {[%emt 0:01:09]} 26. g3 {[%emt 0:01:15]} Nf8 {[%emt 0:00:34]} 27. Bxd8 {[%emt 0:00:05]} Bxd8 {[%emt 0:00:33]} 28. Rc8 {[%emt 0:00:06]} Bf6 {[%emt 0:00:28]} 29. Nd2 {[%emt 0:06:52]} Rxb2 {[%emt 0:00:24]} 30. Ne4 {[%emt 0:00:10]} Be7 {[%emt 0:00:19]} 31. Re8 {[%emt 0:00:09]} Rb1+ {[%emt 0:00:30]} 32. Kg2 {[%emt 0:00:06]} Rd1 {[%emt 0:00:08]} 33. Rxe7 {[%emt 0:00:06]} 1/2-1/2